lending/lending_fUSD_20250418
["ID","MTS","AMOUNT","RATE_DAILY","PERIOD"]
[358354441,1744980647458,-500.0,0.00071086,120]
[358354442,1744980647467,-636.07101713,0.00071086,120]
[358354443,1744980647476,-500.0,0.00071086,120]
[358354444,1744980647485,-505.47892158,0.00071086,120]
[358354445,1744980647494,-565.96779876,0.00071086,120]
[358354446,1744980647504,-1000.0,0.00071086,120]
[358354447,1744980647513,-616.61087407,0.00071086,120]
[358354448,1744980647523,-500.0,0.00071086,120]
[358354449,1744980647532,-500.0,0.00071086,120]
[358354450,1744980647542,-500.0,0.00071086,120]
[358354451,1744980647551,-500.0,0.00071086,120]
[358354452,1744980647561,-623.5951282,0.00071086,120]
[358354453,1744980647570,-500.0,0.00071086,120]
[358354454,1744980647579,-500.0,0.00071086,120]
[358354455,1744980647590,-513.33,0.00071086,120]
[358354456,1744980647599,-500.0,0.00071086,120]
[358354457,1744980647608,-500.0,0.00071086,120]
[358354458,1744980647617,-500.0,0.00071086,120]
[358354459,1744980647626,-500.0,0.00071086,120]
[358354460,1744980647636,-500.0,0.00071086,120]
[358354461,1744980647646,-500.0,0.00071086,120]
[358354462,1744980647655,-500.0,0.00071086,120]
[358354463,1744980647664,-500.0,0.00071086,120]
[358354464,1744980647674,-500.0,0.00071086,120]
[358354465,1744980647683,-500.0,0.00071086,120]
[358354466,1744980647692,-500.0,0.00071086,120]
[358354467,1744980647702,-500.0,0.00071086,120]
[358354468,1744980647712,-500.0,0.00071086,120]
[358354469,1744980647721,-500.0,0.00071086,120]
[358354470,1744980647730,-500.0,0.00071086,120]
[358354471,1744980647739,-500.0,0.00071086,120]
[358354472,1744980647748,-500.0,0.00071086,120]
[358354473,1744980647757,-500.0,0.00071086,120]
[358354474,1744980647767,-1176.9,0.00071086,2]
[358354475,1744980647777,-923.69,0.00071086,120]
[358354476,1744980647787,-500.0,0.00071086,120]
[358354477,1744980647797,-500.0,0.00071086,120]
[358354478,1744980647806,-500.0,0.00071086,120]
[358354479,1744980647815,-500.0,0.00071086,120]
[358354480,1744980647824,-521.59636648,0.00071086,120]
[358354481,1744980647834,-500.0,0.00071086,120]
[358354482,1744980647843,-500.0,0.00071086,120]
[358354483,1744980647852,-500.0,0.00071086,120]
[358354484,1744980647862,-500.0,0.00071086,120]
[358354485,1744980647871,-546.18220208,0.00071086,120]
[358354486,1744980647881,-507.64,0.00071086,120]
[358354487,1744980647891,-500.0,0.00071086,120]
[358354488,1744980647901,-500.0,0.00071086,120]
[358354489,1744980647911,-500.0,0.00071086,120]
[358354490,1744980647920,-500.0,0.00071086,120]
[358354491,1744980647929,-500.0,0.00071086,120]
[358354492,1744980647940,-500.0,0.00071086,120]
[358354493,1744980647949,-500.0,0.00071086,120]
[358354494,1744980647958,-500.0,0.00071086,120]
[358354495,1744980647967,-500.0,0.00071086,120]
[358354496,1744980647977,-500.0,0.00071086,120]
[358354497,1744980647986,-500.0,0.00071086,118]
[358354498,1744980647996,-500.0,0.00071086,2]
[358354499,1744980648007,-500.0,0.00071086,120]
[358354500,1744980648016,-500.0,0.00071086,2]
[358354501,1744980648026,-149742.09477349,0.00071087,3]
[358354502,1744980649349,-456318.32128803,0.00071087,3]
[358354503,1744980649359,-500.0,0.00071087,120]
[358354504,1744980649370,-6899.16,0.00071087,120]
[358354505,1744980649380,-500.0,0.00071087,120]
[358354506,1744980649390,-1616.13,0.00071087,120]
[358354507,1744980649399,-909.82,0.00071087,120]
[358354508,1744980649408,-578.75126914,0.00071087,120]
[358354509,1744980649418,-500.0,0.00071087,120]
[358354510,1744980649428,-500.0,0.00071087,120]
[358354511,1744980649437,-880.87,0.00071087,120]
[358354512,1744980649448,-500.0,0.00071087,120]
[358354513,1744980649458,-500.0,0.00071087,120]
[358354514,1744980649467,-500.0,0.00071087,120]
[358354515,1744980649478,-500.0,0.00071087,120]
[358354516,1744980649488,-500.0,0.00071087,120]
[358354517,1744980649497,-500.0,0.00071087,120]
[358354518,1744980649507,-500.0,0.00071087,120]
[358354519,1744980649516,-500.0,0.00071087,120]
[358354520,1744980649526,-500.0,0.00071087,120]
[358354521,1744980649535,-500.0,0.00071087,120]
[358354522,1744980649544,-500.0,0.00071087,120]
[358354523,1744980649552,-500.0,0.00071087,120]
[358354524,1744980649560,-500.0,0.00071087,120]
[358354525,1744980649569,-500.0,0.00071087,120]
[358354526,1744980649579,-500.0,0.00071087,120]
[358354527,1744980649588,-500.0,0.00071087,120]
[358354528,1744980649598,-500.0,0.00071087,120]
[358354529,1744980649607,-500.0,0.00071087,120]
[358354530,1744980649616,-500.0,0.00071087,120]
[358354531,1744980649625,-500.0,0.00071087,120]
[358354532,1744980649635,-21840.49,0.00071087,7]
[358354533,1744980649644,-500.0,0.00071087,120]
[358354534,1744980649653,-500.0,0.00071087,120]
[358354535,1744980649663,-551.96358465,0.00071087,120]
[358354536,1744980649672,-623.69,0.00071087,120]
[358354537,1744980649682,-591.60868777,0.00071087,120]
[358354538,1744980649692,-500.0,0.00071087,120]
[358354539,1744980649701,-500.0,0.00071087,120]
[358354540,1744980649711,-500.0,0.00071087,120]
[358354541,1744980649720,-656.11,0.00071087,120]
[358354542,1744980649730,-598.49843487,0.00071087,120]
[358354543,1744980649739,-500.0,0.00071087,120]
[358354544,1744980649749,-500.0,0.00071087,120]
[358354545,1744980649759,-500.0,0.00071087,120]
[358354546,1744980649769,-500.0,0.00071087,120]
[358354547,1744980649778,-500.0,0.00071087,120]
[358354548,1744980649788,-500.0,0.00071087,120]
[358354549,1744980649798,-500.0,0.00071087,120]
[358354550,1744980649809,-500.0,0.00071087,120]
[358354551,1744980649818,-500.0,0.00071087,120]
[358354552,1744980649828,-500.0,0.00071087,120]
[358354553,1744980649837,-500.0,0.00071087,120]
[358354554,1744980649846,-500.0,0.00071087,120]
[358354555,1744980649856,-500.0,0.00071087,120]
[358354556,1744980649865,-500.0,0.00071087,120]
[358354557,1744980649875,-500.0,0.00071087,120]
[358354558,1744980649885,-500.0,0.00071087,120]
[358354559,1744980649895,-326.63917711,0.00071087,120]
[358354560,1744980650082,-173.36082289,0.00071087,120]
[358354561,1744980650091,-223.01525711,0.00071087,120]
[358354562,1744980957585,500.0,0.00032,60]
[358354563,1744981641096,-299.54163152,0.0003174,2]
[358354564,1744981641118,-500.0,0.0003184,2]
[358354565,1744981641142,-500.0,0.0003184,2]
[358354566,1744981641162,-500.0,0.0003184,2]
[358354567,1744981641182,-500.0,0.0003184,2]
[358354568,1744981641202,-299.54163152,0.00034924,2]
[358354569,1744981641223,-250.0,0.00035024,2]
[358354570,1744981641243,-243.11719965,0.00047811,6]
[358354571,1744981641262,-181.74,0.000553,2]
[358354572,1744981641282,-500.0,0.00064445,120]
[358354573,1744981641302,-615.32364614,0.00065229,5]
[358354574,1744981641321,-215.593,0.00065261,120]
[358354575,1744981641342,-900.0,0.00065305,20]
[358354576,1744981641363,-283.851,0.00065306,120]
[358354577,1744981641382,-150.0,0.00065306,120]
[358354578,1744981641402,-150.213,0.00065354,120]
[358354579,1744981641421,-1281.0,0.00065354,120]
[358354580,1744981641442,-1440.0,0.00065354,120]
[358354581,1744981641463,-1033.46,0.00067236,2]
[358354582,1744981641483,-606.039713,0.00067964,30]
[358354583,1744981641503,-150.0,0.00068306,120]
[358354584,1744981641523,-374.75339941,0.00068354,120]
[358354585,1744981649393,-906.24660059,0.00068354,120]
[358354586,1744981649415,-75.0431391,0.000689,34]
[358354587,1744981651084,-191.0154222,0.000689,34]
[358354588,1744981651291,-338.0,0.00069,120]
[358354589,1744981651313,-1000.0,0.00069048,120]
[358354590,1744981651337,-250.0,0.00069106,120]
[358354591,1744981651359,-580.26,0.00069106,30]
[358354592,1744981651382,-152.89,0.00069218,120]
[358354593,1744981651405,-266.05856105,0.00069417,34]
[358354594,1744981651426,-1033.46,0.000695,2]
[358354595,1744981651448,-160.54,0.00069578,30]
[358354596,1744981651469,-773.38685315,0.00069586,2]
[358354599,1744981831916,-600.0,0.00066534,120]
[358354600,1744981831926,-500.0,0.00069586,2]
[358354601,1744981831935,-338.0,0.00069726,120]
[358354602,1744981831945,-181.85,0.00069778,120]
[358354603,1744981831954,-900.0,0.00069791,20]
[358354604,1744981831964,-17677.6895559,0.00069792,2]
[358354644,1744981838257,-331.6200553,0.00069792,2]
[358354645,1744981838268,-1549.17870469,0.00069792,2]
[358354646,1744981838279,-3351.4199991,0.00069792,2]
[358354647,1744981838291,-990.09168501,0.00069792,2]
[358354648,1744981838300,-200.0,0.00069999,120]
[358354649,1744981838309,-4541.06822733,0.0007,120]
[358354650,1744981838319,-338.0,0.0007,120]
[358354651,1744981838328,-6805.18193079,0.0007,2]
[358354656,1744981840131,-928.9185683,0.0007,2]
[358354657,1744981840299,-9.56001603,0.0007,2]
[358354658,1744981840466,-81.63948488,0.0007,2]
[358354659,1744981840475,-237.0,0.00070071,2]
[358354660,1744981840485,-338.0,0.00070274,120]
[358354661,1744981840494,-8664.85,0.00070274,2]
[358354662,1744981840504,-1046.2703,0.00070438,2]
[358354663,1744981840513,-500.0,0.00070438,2]
[358354664,1744981840523,-1000.0,0.00070439,30]
[358354665,1744981840532,-426.547,0.00070439,120]
[358354666,1744981840542,-16554.88575185,0.00070528,2]
[358354667,1744981840552,-350.0,0.00070538,120]
[358354668,1744981840561,-500.0,0.00070538,120]
[358354669,1744981840574,-535.01629448,0.00070538,120]
[358354670,1744981840747,-430.63308182,0.00070538,120]
[358354671,1744981840757,-330.86801094,0.00070538,120]
[358354672,1744981840767,-500.0,0.00070538,120]
[358354673,1744981840776,-500.0,0.00070538,120]
[358354674,1744981840785,-500.0,0.00070538,120]
[358354675,1744981840794,-500.0,0.00070538,120]
[358354676,1744981840803,-500.0,0.00070538,120]
[358354677,1744981840813,-500.0,0.00070538,120]
[358354678,1744981840821,-294.89510493,0.00070538,120]
[358354679,1744981840829,-500.0,0.00070538,120]
[358354680,1744981840837,-500.0,0.00070538,120]
[358354681,1744981840845,-657.45,0.00070538,120]
[358354682,1744981840854,-707.29,0.00070538,120]
[358354683,1744981840862,-500.0,0.00070538,120]
[358354684,1744981840871,-500.0,0.00070538,120]
[358354685,1744981840880,-500.0,0.00070538,120]
[358354686,1744981840889,-500.0,0.00070538,120]
[358354687,1744981840899,-500.0,0.00070538,120]
[358354688,1744981840908,-778.03,0.00070538,120]
[358354689,1744981840918,-500.0,0.00070538,120]
[358354690,1744981840927,-500.0,0.00070538,120]
[358354691,1744981840937,-500.0,0.00070538,120]
[358354692,1744981840946,-500.0,0.00070538,120]
[358354693,1744981840955,-523.10856991,0.00070538,120]
[358354694,1744981840965,-500.0,0.00070538,120]
[358354695,1744981840974,-500.0,0.00070538,120]
[358354696,1744981840983,-500.0,0.00070538,120]
[358354697,1744981840993,-328.28643953,0.00070538,120]
[358354698,1744981841002,-500.0,0.00070538,120]
[358354699,1744981841012,-523.5204808,0.00070538,120]
[358354700,1744981841021,-500.0,0.00070538,120]
[358354701,1744981841031,-490.0,0.00070538,120]
[358354702,1744981841041,-500.0,0.00070538,120]
[358354703,1744981841051,-500.0,0.00070538,120]
[358354704,1744981841060,-505.22749249,0.00070538,120]
[358354705,1744981841070,-500.0,0.00070538,120]
[358354706,1744981841079,-500.0,0.00070538,120]
[358354707,1744981841089,-562.61,0.00070538,30]
[358354708,1744981841099,-500.81646089,0.00070538,30]
[358354709,1744981841108,-1110.74,0.00070538,120]
[358354710,1744981841118,-500.0,0.00070538,120]
[358354711,1744981841127,-642.95,0.00070538,120]
[358354712,1744981841137,-500.0,0.00070538,120]
[358354713,1744981841147,-500.0,0.00070538,120]
[358354714,1744981841157,-500.0,0.00070538,120]
[358354715,1744981841166,-500.0,0.00070538,120]
[358354716,1744981841176,-500.0,0.00070538,120]
[358354717,1744981841185,-500.0,0.00070538,120]
[358354718,1744981841194,-527.83468522,0.00070538,120]
[358354719,1744981841204,-1460.87,0.00070538,120]
[358354720,1744981841213,-500.0,0.00070538,120]
[358354721,1744981841222,-500.0,0.00070538,120]
[358354722,1744981841231,-1151.34,0.00070538,120]
[358354723,1744981841241,-500.0,0.00070538,120]
[358354724,1744981841250,-500.0,0.00070538,120]
[358354725,1744981841260,-500.0,0.00070538,120]
[358354726,1744981841269,-500.0,0.00070538,120]
[358354727,1744981841278,-553.7,0.00070538,120]
[358354728,1744981841287,-500.0,0.00070538,120]
[358354729,1744981841298,-500.0,0.00070538,120]
[358354730,1744981841308,-500.0,0.00070538,120]
[358354731,1744981841317,-338.0,0.00070548,120]
[358354732,1744981841326,-158.01720784,0.00070657,120]
[358354733,1744981841336,-500.0,0.00070657,120]
[358354734,1744981841345,-500.0,0.00070657,120]
[358354735,1744981841354,-500.0,0.00070657,120]
[358354736,1744981841363,-500.0,0.00070657,120]
[358354737,1744981841373,-500.0,0.00070657,120]
[358354738,1744981841382,-500.0,0.00070657,120]
[358354739,1744981841391,-500.0,0.00070657,120]
[358354740,1744981841401,-500.0,0.00070657,120]
[358354741,1744981841410,-500.91891424,0.00070657,120]
[358354742,1744981841419,-500.0,0.00070657,120]
[358354743,1744981841429,-500.0,0.00070657,120]
[358354744,1744981841438,-500.0,0.00070657,120]
[358354745,1744981841447,-500.0,0.00070657,120]
[358354746,1744981841457,-500.0,0.00070657,120]
[358354747,1744981841465,-500.0,0.00070657,120]
[358354748,1744981841474,-500.0,0.00070657,120]
[358354749,1744981841483,-500.0,0.00070657,120]
[358354750,1744981841493,-1000.0,0.00070811,120]
[358354751,1744981841503,-1730.37758679,0.00070887,15]
[358354752,1744981841512,-2450.9755,0.00070887,2]
[358354753,1744981841521,-452.293,0.00070887,2]
[358354754,1744981841531,-521.99058857,0.00070985,80]
[358354755,1744981841541,-311.38123231,0.00070985,120]
[358354756,1744981841551,-23213.4055,0.00070987,2]
[358354757,1744981841560,-1550.2932,0.00070988,2]
[358354758,1744981841570,-500.0,0.00071072,120]
[358354759,1744981841579,-500.0,0.00071072,120]
[358354760,1744981841588,-500.0,0.00071072,120]
[358354761,1744981841598,-500.0,0.00071072,120]
[358354762,1744981841608,-500.0,0.00071072,120]
[358354763,1744981841617,-500.0,0.00071072,120]
[358354764,1744981841626,-500.0,0.00071072,120]
[358354765,1744981841635,-500.0,0.00071072,120]
[358354766,1744981841644,-500.0,0.00071072,120]
[358354767,1744981841654,-607.38105317,0.00071072,120]
[358354768,1744981841665,-500.0,0.00071072,120]
[358354769,1744981841674,-500.0,0.00071072,120]
[358354770,1744981841683,-500.0,0.00071072,120]
[358354771,1744981841693,-500.0,0.00071072,120]
[358354772,1744981841704,-846.72,0.00071072,120]
[358354773,1744981841714,-500.0,0.00071072,120]
[358354774,1744981841723,-569.298798,0.00071072,120]
[358354775,1744981841735,-500.0,0.00071072,120]
[358354776,1744981841744,-500.0,0.00071072,120]
[358354777,1744981841755,-500.0,0.00071072,120]
[358354778,1744981841764,-500.0,0.00071072,120]
[358354779,1744981841774,-611.00243263,0.00071072,120]
[358354780,1744981841783,-500.0,0.00071072,120]
[358354781,1744981841793,-500.0,0.00071072,120]
[358354782,1744981841803,-500.0,0.00071072,120]
[358354783,1744981841812,-500.0,0.00071072,120]
[358354784,1744981841821,-500.0,0.00071072,120]
[358354785,1744981841830,-500.0,0.00071072,120]
[358354786,1744981841839,-500.0,0.00071073,15]
[358354787,1744981841849,-500.0,0.00071073,2]
[358354788,1744981841858,-500.0,0.00071073,15]
[358354789,1744981841868,-500.0,0.00071084,120]
[358354790,1744981841877,-1000.0,0.00071085,120]
[358354791,1744981841887,-500.0,0.00071085,2]
[358354792,1744981841896,-500.0,0.00071085,2]
[358354793,1744981841906,-500.0,0.00071085,120]
[358354794,1744981841916,-500.0,0.00071085,120]
[358354795,1744981841925,-500.0,0.00071085,120]
[358354796,1744981841934,-500.0,0.00071085,120]
[358354797,1744981841944,-530.51653043,0.00071085,120]
[358354798,1744981841953,-500.0,0.00071085,120]
[358354799,1744981841963,-545.32948795,0.00071085,120]
[358354800,1744981841973,-150.7392071,0.00071085,120]
[358354801,1744981841983,-500.0,0.00071085,120]
[358354802,1744981841992,-500.0,0.00071085,120]
[358354803,1744981842001,-6324.23,0.00071085,120]
[358354804,1744981842011,-500.0,0.00071085,120]
[358354805,1744981842021,-1481.45,0.00071085,120]
[358354806,1744981842031,-1000.0,0.00071085,120]
[358354807,1744981842040,-500.0,0.00071085,120]
[358354808,1744981842049,-500.0,0.00071085,120]
[358354809,1744981842059,-500.0,0.00071085,120]
[358354810,1744981842068,-500.0,0.00071085,120]
[358354811,1744981842078,-855.7,0.00071085,120]
[358354812,1744981842087,-500.0,0.00071085,120]
[358354813,1744981842097,-500.0,0.00071085,120]
[358354814,1744981842106,-500.0,0.00071085,120]
[358354815,1744981842116,-500.0,0.00071085,120]
[358354816,1744981842125,-500.0,0.00071085,120]
[358354817,1744981842135,-500.0,0.00071085,120]
[358354818,1744981842144,-500.0,0.00071085,120]
[358354819,1744981842154,-500.0,0.00071085,120]
[358354820,1744981842164,-500.0,0.00071085,120]
[358354821,1744981842174,-500.0,0.00071085,120]
[358354822,1744981842184,-807.46,0.00071085,120]
[358354823,1744981842193,-500.0,0.00071085,2]
[358354824,1744981842203,-500.0,0.00071085,120]
[358354825,1744981842213,-500.0,0.00071085,120]
[358354826,1744981842223,-500.0,0.00071085,120]
[358354827,1744981842233,-500.0,0.00071085,120]
[358354828,1744981842242,-513.23789708,0.00071085,120]
[358354829,1744981842252,-500.0,0.00071085,120]
[358354830,1744981842261,-500.0,0.00071085,120]
[358354831,1744981842270,-507.70484941,0.00071085,120]
[358354832,1744981842279,-511.96421143,0.00071085,120]
[358354833,1744981842289,-508.41964883,0.00071085,120]
[358354834,1744981842299,-510.77000104,0.00071085,120]
[358354835,1744981842308,-500.0,0.00071085,120]
[358354836,1744981842318,-500.0,0.00071085,120]
[358354837,1744981842327,-231.89751363,0.00071085,120]
[358354838,1744981842337,-500.0,0.00071085,120]
[358354839,1744981842346,-505.1499953,0.00071085,120]
[358354840,1744981842356,-508.24324225,0.00071085,120]
[358354841,1744981842366,-500.0,0.00071085,120]
[358354842,1744981842375,-500.0,0.00071085,120]
[358354843,1744981842384,-500.0,0.00071085,120]
[358354844,1744981842393,-500.0,0.00071085,120]
[358354845,1744981842403,-500.0,0.00071085,120]
[358354846,1744981842412,-500.0,0.00071085,120]
[358354847,1744981842422,-499.41000084,0.00071085,120]
[358354848,1744981842431,-549.05800216,0.00071085,120]
[358354849,1744981842440,-500.0,0.00071085,120]
[358354850,1744981842450,-500.0,0.00071085,120]
[358354851,1744981842459,-500.0,0.00071085,120]
[358354852,1744981842468,-500.0,0.00071085,120]
[358354853,1744981842477,-500.0,0.00071085,120]
[358354854,1744981842486,-500.0,0.00071085,2]
[358354855,1744981842496,-500.0,0.00071085,120]
[358354856,1744981842506,-500.0,0.00071085,120]
[358354857,1744981842516,-1000.0,0.00071085,120]
[358354858,1744981842526,-503.8062791,0.00071085,120]
[358354859,1744981842536,-500.0,0.00071085,120]
[358354860,1744981842546,-500.0,0.00071085,120]
[358354861,1744981842557,-500.0,0.00071085,120]
[358354862,1744981842566,-641.99,0.00071085,120]
[358354863,1744981842575,-491.19221745,0.00071085,120]
[358354864,1744981842585,-601.44,0.00071085,120]
[358354865,1744981842595,-500.0,0.00071085,120]
[358354866,1744981842604,-500.0,0.00071085,120]
[358354867,1744981842613,-500.0,0.00071085,120]
[358354868,1744981842622,-500.0,0.00071085,120]
[358354869,1744981842632,-500.0,0.00071085,120]
[358354870,1744981842641,-500.0,0.00071085,120]
[358354871,1744981842650,-500.0,0.00071085,120]
[358354872,1744981842662,-20020.45,0.00071085,7]
[358354873,1744981842671,-500.0,0.00071085,120]
[358354874,1744981842680,-500.0,0.00071085,120]
[358354875,1744981842689,-500.0,0.00071085,120]
[358354876,1744981842699,-571.71,0.00071085,120]
[358354877,1744981842709,-500.0,0.00071085,120]
[358354878,1744981842718,-500.0,0.00071085,120]
[358354879,1744981842729,-500.0,0.00071085,120]
[358354881,1744981842739,-500.0,0.00071085,120]
[358354882,1744981842748,-535.84938713,0.00071085,120]
[358354883,1744981842758,-500.0,0.00071085,120]
[358354884,1744981842768,-500.0,0.00071085,120]
[358354885,1744981842778,-560.34072597,0.00071085,120]
[358354886,1744981842787,-500.0,0.00071085,120]
[358354887,1744981842797,-500.0,0.00071085,120]
[358354888,1744981842806,-500.0,0.00071085,120]
[358354889,1744981842815,-500.0,0.00071085,120]
[358354890,1744981842824,-500.0,0.00071085,120]
[358354891,1744981842834,-500.0,0.00071085,120]
[358354893,1744981842843,-500.0,0.00071085,120]
[358354894,1744981842852,-525.42515716,0.00071085,120]
[358354895,1744981842862,-500.0,0.00071085,120]
[358354896,1744981842871,-500.0,0.00071085,120]
[358354897,1744981842880,-500.0,0.00071085,120]
[358354898,1744981842890,-500.0,0.00071085,120]
[358354899,1744981842899,-500.0,0.00071085,120]
[358354900,1744981842909,-500.0,0.00071085,120]
[358354901,1744981842919,-7075.62,0.00071085,120]
[358354902,1744981842929,-500.0,0.00071085,120]
[358354903,1744981842938,-500.0,0.00071085,120]
[358354904,1744981842948,-500.0,0.00071085,120]
[358354905,1744981842958,-500.0,0.00071085,120]
[358354906,1744981842968,-500.0,0.00071085,120]
[358354907,1744981842977,-500.0,0.00071085,120]
[358354908,1744981842987,-500.0,0.00071085,120]
[358354909,1744981842997,-500.0,0.00071085,120]
[358354910,1744981843006,-500.0,0.00071085,120]
[358354911,1744981843015,-515.09190427,0.00071085,120]
[358354912,1744981843025,-500.0,0.00071085,120]
[358354913,1744981843034,-500.0,0.00071085,120]
[358354914,1744981843044,-500.0,0.00071085,120]
[358354915,1744981843054,-500.0,0.00071085,120]
[358354916,1744981843064,-500.0,0.00071085,120]
[358354917,1744981843073,-500.0,0.00071085,120]
[358354918,1744981843083,-500.0,0.00071085,120]
[358354919,1744981843092,-505.02,0.00071085,120]
[358354920,1744981843102,-500.0,0.00071085,120]
[358354921,1744981843112,-1078.82,0.00071085,2]
[358354922,1744981843121,-500.0,0.00071085,120]
[358354923,1744981843131,-822.91,0.00071085,120]
[358354924,1744981843140,-500.0,0.00071085,120]
[358354925,1744981843150,-500.0,0.00071085,120]
[358354926,1744981843159,-500.0,0.00071085,120]
[358354927,1744981843169,-500.0,0.00071085,120]
[358354928,1744981843178,-500.0,0.00071085,120]
[358354929,1744981843188,-569.6,0.00071085,120]
[358354930,1744981843209,-649.39556684,0.00071085,120]
[358354931,1744981843223,-500.0,0.00071085,120]
[358354932,1744981843232,-500.0,0.00071085,120]
[358354933,1744981843242,-528.56,0.00071085,120]
[358354934,1744981843251,-500.0,0.00071085,120]
[358354935,1744981843260,-350.0,0.00071086,120]
[358354936,1744981843270,-500.0,0.00071086,120]
[358354937,1744981843279,-500.0,0.00071086,120]
[358354938,1744981843288,-521.71875914,0.00071086,120]
[358354939,1744981843298,-500.0,0.00071086,120]
[358354940,1744981843308,-500.0,0.00071086,120]
[358354941,1744981843317,-500.0,0.00071086,120]
[358354942,1744981843327,-458.48166671,0.00071086,120]
[358354943,1744981843336,-225.90375265,0.00071086,120]
[358354944,1744981843345,-500.0,0.00071086,120]
[358354945,1744981843356,-657.45,0.00071086,120]
[358354946,1744981843366,-152.09289653,0.00071086,120]
[358354947,1744981843376,-707.29,0.00071086,120]
[358354948,1744981843385,-500.0,0.00071086,120]
[358354950,1744981843394,-500.0,0.00071086,120]
[358354952,1744981843403,-425.00214019,0.00071086,120]
[358354954,1744981843412,-471.98948504,0.00071086,120]
[358354956,1744981843421,-500.0,0.00071086,120]
[358354958,1744981843431,-778.03,0.00071086,120]
[358354959,1744981843440,-500.0,0.00071086,120]
[358354961,1744981843449,-500.0,0.00071086,120]
[358354962,1744981843459,-500.0,0.00071086,120]
[358354964,1744981843468,-167.25,0.00071086,120]
[358354965,1744981843477,-500.0,0.00071086,120]
[358354967,1744981843486,-500.0,0.00071086,120]
[358354969,1744981843495,-359.7,0.00071086,120]
[358354970,1744981843504,-1110.74,0.00071086,120]
[358354972,1744981843513,-509.05605198,0.00071086,120]
[358354974,1744981843523,-642.95,0.00071086,120]
[358354975,1744981843532,-500.0,0.00071086,120]
[358354976,1744981843542,-500.0,0.00071086,120]
[358354978,1744981843551,-175.83,0.00071086,120]
[358354980,1744981843560,-1460.87,0.00071086,120]
[358354981,1744981843570,-500.0,0.00071086,120]
[358354982,1744981843580,-1151.34,0.00071086,120]
[358354983,1744981843589,-500.0,0.00071086,120]
[358354984,1744981843598,-500.0,0.00071086,120]
[358354985,1744981843724,-500.0,0.00071086,120]
[358354986,1744981843733,-500.0,0.00071086,120]
[358354987,1744981843742,-500.0,0.00071086,120]
[358354988,1744981843751,-161.34405,0.00071087,120]
[358354989,1744981843759,-200.0,0.00071087,120]
[358354990,1744981843768,-207.4,0.00071087,120]
[358354991,1744981843777,-215.0738,0.00071087,120]
[358354992,1744981843786,-223.0315306,0.00071087,120]
[358354993,1744981843796,-231.28369723,0.00071087,120]
[358354994,1744981843804,-239.84119403,0.00071087,120]
[358354995,1744981843813,-248.71531821,0.00071087,120]
[358354996,1744981843822,-257.91778498,0.00071087,120]
[358354997,1744981843832,-267.46074303,0.00071087,120]
[358354998,1744981843840,-277.35679052,0.00071087,120]
[358354999,1744981843849,-512.75308763,0.00071087,120]
[358355000,1744981843857,-500.0,0.00071087,120]